fUST/lending_fUST_20250615
["ID","MTS","AMOUNT","RATE_DAILY","PERIOD"]
[365904508,1749979854335,-460.0,0.00023205,2]
[365904510,1749979854346,-460.0,0.00023205,2]
[365904513,1749979854356,-445.83893765,0.00023205,2]
[365904515,1749979854367,-460.0,0.00023205,2]
[365904516,1749979854376,-493.83,0.00023205,2]
[365904519,1749979854386,-460.0,0.00023207,2]
[365904521,1749979854398,-460.0,0.00023207,2]
[365904522,1749979854407,-460.0,0.00023207,2]
[365904524,1749979854417,-460.0,0.00023207,2]
[365904526,1749979854428,-482.88,0.00023207,2]
[365904528,1749979854437,-1502.33,0.00023207,2]
[365904530,1749979854447,-460.0,0.00023207,2]
[365904532,1749979854457,-460.0,0.00023207,2]
[365904534,1749979854467,-937.65,0.00023207,2]
[365904536,1749979854476,-709.91,0.00023207,2]
[365904538,1749979854486,-460.0,0.00023207,2]
[365904540,1749979854496,-916.98,0.00023207,2]
[365904542,1749979854505,-1340.42,0.00023207,2]
[365904544,1749979854515,-765.73,0.00023208,2]
[365904546,1749979854525,-206.0,0.0002321,2]
[365904548,1749979854535,-1500.0,0.00023287,2]
[365904550,1749979854544,-1500.0,0.00023287,2]
[365904552,1749979854553,-1500.0,0.00023287,2]
[365904554,1749979854563,-1500.0,0.00023287,2]
[365904556,1749979854573,-1500.0,0.00023287,2]
[365904558,1749979854582,-1800.0,0.00023287,2]
[365904560,1749979854592,-1500.0,0.00023287,2]
[365904562,1749979854602,-1500.0,0.00023287,2]
[365904564,1749979854612,-748.52,0.00023294,4]
[365904566,1749979854621,-69846.2,0.000233,2]
[365904568,1749979854631,-771.63379709,0.00023314,9]
[365904570,1749979854641,-1002.02931313,0.0002334,2]
[365904572,1749979854650,-168.0,0.00023342,2]
[365904574,1749979854660,-1500.0,0.0002335,2]
[365904576,1749979854670,-500.0,0.00023369,2]
[365904578,1749979854679,-168.0,0.00023388,2]
[365904580,1749979854689,-748.52,0.00023394,2]
[365904582,1749979854699,-1500.0,0.00023396,2]
[365904584,1749979854709,-522.64930347,0.00023396,2]
[365904586,1749979854718,-1500.0,0.00023402,2]
[365904588,1749979854728,-500.0,0.0002342,2]
[365904591,1749979854742,-500.0,0.00023455,2]
[365904593,1749979854756,-206.0,0.0002347,2]
[365904596,1749979854769,-1634.83,0.00023476,2]
[365904598,1749979854782,-852.81,0.00023476,2]
[365904600,1749979854793,-918.13,0.00023476,2]
[365904603,1749979854805,-676.32,0.00023476,2]
[365904605,1749979854819,-680.79,0.00023476,2]
[365904607,1749979854831,-500.0,0.00023477,2]
[365904610,1749979854844,-1358.41,0.00023478,2]
[365904612,1749979854857,-1654.7,0.00023478,2]
[365904614,1749979854869,-674.14,0.00023478,2]
[365904617,1749979854882,-460.0,0.00023478,2]
[365904619,1749979854896,-460.0,0.00023478,2]
[365904622,1749979854910,-460.0,0.00023478,2]
[365904624,1749979854922,-708.28,0.00023479,2]
[365904626,1749979854935,-460.0,0.00023479,2]
[365904629,1749979854947,-460.0,0.00023479,2]
[365904631,1749979854958,-460.0,0.00023479,2]
[365904633,1749979854971,-493.83,0.00023479,2]
[365904635,1749979854984,-460.0,0.00023481,2]
[365904638,1749979854998,-460.0,0.00023481,2]
[365904640,1749979855012,-460.0,0.00023481,2]
[365904642,1749979855022,-460.0,0.00023481,2]
[365904644,1749979855032,-482.88,0.00023481,2]
[365904646,1749979855045,-1502.33,0.00023481,2]
[365904649,1749979855058,-460.0,0.00023481,2]
[365904651,1749979855071,-460.0,0.00023481,2]
[365904653,1749979855083,-937.65,0.00023481,2]
[365904656,1749979855095,-709.91,0.00023481,2]
[365904658,1749979855107,-460.0,0.00023481,2]
[365904660,1749979855120,-916.98,0.00023481,2]
[365904663,1749979855133,-1340.42,0.00023481,2]
[365904665,1749979855147,-765.73,0.00023482,2]
[365904667,1749979855158,-771.63379709,0.00023486,9]
[365904669,1749979855169,-748.52,0.00023494,5]
[365904671,1749979855179,-500.0,0.00023494,2]
[365904673,1749979855189,-500.0,0.000235,2]
[365904676,1749979855199,-8000.0,0.000235,30]
[365904678,1749979855212,-268.96,0.00023503,2]
[365904680,1749979855226,-434.3016927,0.00023515,2]
[365904683,1749979855238,-1599.625827,0.0002352,3]
[365904685,1749979855248,-12150.41,0.0002356,5]
[365904687,1749979855259,-200.0,0.00023561,2]
[365904689,1749979855270,-200.0,0.00023561,2]
[365904691,1749979855283,-200.0,0.00023561,2]
[365904694,1749979855294,-200.0,0.00023561,2]
[365904696,1749979855305,-200.0,0.00023561,2]
[365904698,1749979855315,-200.0,0.00023561,2]
[365904700,1749979855328,-200.0,0.00023561,2]
[365904702,1749979855339,-748.52,0.00023594,6]
[365904704,1749979855350,-405.0,0.00023599,2]
[365904707,1749979855361,-406.0,0.00023599,2]
[365904709,1749979855372,-151.0,0.000236,10]
[365904711,1749979855383,-2469.89,0.000236,2]
[365904713,1749979855395,-500.0,0.0002362,2]
[365904716,1749979855408,-500.0,0.00023627,2]
[365904718,1749979855419,-648.01561426,0.00023632,2]
[365904720,1749979855430,-771.63379709,0.00023659,9]
[365904722,1749979855441,-41310.55945846,0.00023687,2]
[365904724,1749979855453,-748.52,0.00023694,2]
[365904727,1749979855465,-869.6,0.000237,7]
[365904729,1749979855476,-168.0,0.00023733,2]
[365904731,1749979855487,-500.0,0.0002374,9]
[365904733,1749979855497,-502.97430169,0.0002374,9]
[365904735,1749979855509,-500.0,0.0002374,9]
[365904738,1749979855520,-500.0,0.0002374,9]
[365904740,1749979855530,-206.0,0.0002374,2]
[365904742,1749979855541,-806.94237327,0.00023745,2]
[365904744,1749979855551,-500.0,0.00023745,2]
[365904746,1749979855562,-168.0,0.00023747,2]
[365904748,1749979855573,-1634.83,0.0002375,2]
[365904750,1749979855584,-852.81,0.0002375,2]
[365904753,1749979855595,-918.13,0.0002375,2]
[365904755,1749979855605,-676.32,0.0002375,2]
[365904757,1749979855617,-680.79,0.0002375,2]
[365904759,1749979855628,-1358.41,0.00023752,2]
[365904761,1749979855639,-1654.7,0.00023752,2]
[365904763,1749979855649,-674.14,0.00023752,2]
[365904766,1749979855659,-460.0,0.00023752,2]
[365904768,1749979855670,-460.0,0.00023752,2]
[365904770,1749979855681,-460.0,0.00023752,2]
[365904772,1749979855691,-708.28,0.00023753,2]
[365904774,1749979855702,-460.0,0.00023753,2]
[365904776,1749979855713,-460.0,0.00023753,2]
[365904778,1749979855724,-460.0,0.00023753,2]
[365904781,1749979855736,-493.83,0.00023753,2]
[365904783,1749979855748,-460.0,0.00023755,2]
[365904785,1749979855758,-460.0,0.00023755,2]
[365904787,1749979855767,-460.0,0.00023755,2]
[365904789,1749979855777,-460.0,0.00023755,2]
[365904791,1749979855786,-482.88,0.00023755,2]
[365904793,1749979855795,-1502.33,0.00023755,2]
[365904795,1749979855804,-460.0,0.00023755,2]
[365904797,1749979855813,-460.0,0.00023755,2]
[365904799,1749979855822,-937.65,0.00023755,2]
[365904801,1749979855831,-709.91,0.00023755,2]
[365904803,1749979855841,-460.0,0.00023755,2]
[365904805,1749979855850,-916.98,0.00023755,2]
[365904807,1749979855860,-1340.42,0.00023755,2]
[365904809,1749979855869,-765.73,0.00023756,2]
[365904811,1749979855878,-151.0,0.0002376,7]
[365904813,1749979855887,-151.0,0.0002376,7]
[365904815,1749979855896,-44987.60648635,0.0002376,2]
[365904817,1749979855906,-150.0,0.00023773,2]
[365904819,1749979855915,-19848.32484254,0.0002378,5]
[365904821,1749979855924,-32871.37789864,0.00023788,2]
[365904824,1749979855939,-23480.58356122,0.00023788,2]
[365904826,1749979855948,-748.52,0.00023794,6]
[365904828,1749979855957,-500.0,0.00023796,2]
[365904830,1749979855966,-52320.83113753,0.000238,7]
[365904832,1749979855975,-61973.02,0.000238,7]
[365904834,1749979855984,-298809.67201747,0.000238,2]
[365904836,1749979855995,-12253.08110124,0.000238,3]
[365904838,1749979856003,-213.32089821,0.000238,7]
[365904840,1749979856012,-151.0,0.000238,7]
[365904842,1749979856022,-152.436696,0.000238,7]
[365904844,1749979856031,-210.352739,0.000238,7]
[365904846,1749979856040,-210.352739,0.000238,7]
[365904848,1749979856049,-210.352739,0.000238,7]
[365904849,1749979856058,-210.352739,0.000238,7]
[365904852,1749979856067,-151.0,0.000238,7]
[365904853,1749979856077,-151.0,0.000238,7]
[365904865,1749979856256,-152.933704,0.000238,7]
[365904868,1749979856272,-152.933704,0.000238,7]
[365904870,1749979856282,-152.933704,0.000238,7]
[365904872,1749979856291,-151.0,0.000238,7]
[365904874,1749979856301,-152.933704,0.000238,7]
[365904876,1749979856310,-215.0738,0.000238,2]
[365904878,1749979856319,-434.3016927,0.00023826,2]
[365904880,1749979856328,-771.63379709,0.00023831,10]
[365904882,1749979856338,-500.0,0.00023835,2]
[365904884,1749979856347,-500.0,0.00023835,2]
[365904886,1749979856356,-894.24716771,0.00023835,2]
[365904888,1749979856366,-2000.0,0.00023835,2]
[365904890,1749979856375,-1500.0,0.00023835,2]
[365904892,1749979856385,-2400.0,0.00023835,2]
[365904894,1749979856394,-500.0,0.00023835,2]
[365904896,1749979856403,-500.0,0.00023835,2]
[365904898,1749979856413,-12091.95,0.00023837,2]
[365904900,1749979856422,-500.0,0.0002385,2]
[365904902,1749979856431,-500.0,0.0002388,2]
[365904904,1749979856440,-4608.09487268,0.0002389,2]
[365904907,1749979856452,-10025.4532451,0.0002389,2]
[365904909,1749979856464,-775.83299508,0.0002389,2]
[365904911,1749979856475,-10025.0,0.0002389,2]
[365904913,1749979856486,-2289.99996995,0.0002389,2]
[365905913,1749979905477,228.89167876,0.00019849,2]
[365905915,1749979929706,226.3546816,0.00019629,2]
[365905916,1749979940600,530.1137733,0.00019568,2]
[365905921,1749980258374,173.222349,0.0001942,2]
[365905922,1749980408119,326.299585,0.00013699,2]
[365905924,1749980466214,7525.4562737,0.00019409,2]
[365905925,1749980484176,5000.0,0.0002,2]
[365905926,1749980518999,640.4394266,0.00019403,2]
[365905927,1749980524642,359.923959,0.00019399,2]
[365905930,1749980682860,1600.0000009,0.00024658,120]
[365905931,1749980707648,1613.90642683,0.0002,2]
[365905932,1749980707678,331.30516102,0.0002,2]
[365905933,1749980826201,-757.20546127,0.00020109,2]
[365905934,1749980831315,-1234.89453873,0.00020109,2]
[365905935,1749980831337,-500.0,0.00020164,2]
[365905936,1749980831359,-178.81961769,0.00020187,2]
[365905937,1749980838075,-147.47996731,0.00020187,2]
[365905938,1749980838097,-172.68902088,0.00020239,2]
[365905946,1749980958097,730.1325499,0.00019577,2]
[365905953,1749981032437,-2019.85,0.00020097,2]
[365905954,1749981032447,-500.0,0.00020164,2]
[365905955,1749981032456,-74.31458467,0.00020239,2]
[365905956,1749981032465,-174.71491755,0.00020261,2]
[365905957,1749981032474,-300.0,0.00020449,2]
[365905958,1749981032483,-1094.0,0.00020449,2]
[365905959,1749981032493,-500.0,0.0002045,2]
[365905960,1749981032503,-193.54210853,0.0002045,2]
[365905961,1749981032512,-500.0,0.0002045,2]
[365905962,1749981032521,-500.0,0.0002045,2]
[365905964,1749981032532,-216.69281112,0.0002045,2]
[365905966,1749981032542,-908.39328326,0.00020451,2]
[365905969,1749981032555,-3621.54,0.00020451,2]
[365905971,1749981032567,-1010.47387355,0.00020451,2]
[365905973,1749981032576,-300.0,0.00020451,2]
[365905975,1749981032586,-460.0,0.00020459,2]
[365905977,1749981032595,-569.15,0.00020459,2]
[365905979,1749981032604,-475.11,0.00020459,2]
[365905981,1749981032614,-460.0,0.00020459,2]
[365905983,1749981032623,-500.0,0.00020459,2]
[365905985,1749981032632,-282.27954949,0.00020459,2]
[365905987,1749981032644,-217.72045051,0.00020459,2]
[365905989,1749981032653,-313.22338394,0.00020459,2]
[365906072,1749981034239,428.44470019,0.000189,2]
[365906115,1749981038668,-215.58643137,0.00020459,2]
[365906116,1749981038679,-260.75041945,0.00020459,2]
[365906117,1749981038688,-500.0,0.00020459,2]
[365906118,1749981038698,-500.0,0.00020459,2]
[365906119,1749981038708,-500.0,0.00020459,2]
[365906120,1749981038718,-500.0,0.00020459,2]
[365906121,1749981038727,-500.0,0.00020459,2]
[365906122,1749981038737,-500.0,0.00020459,2]
[365906123,1749981038746,-500.0,0.00020459,2]
[365906124,1749981038756,-500.0,0.00020459,2]
[365906125,1749981038765,-500.0,0.00020459,2]
[365906126,1749981038775,-500.0,0.00020459,2]
[365906127,1749981038785,-500.0,0.00020459,2]
[365906128,1749981038794,-500.0,0.00020459,2]
[365906129,1749981038803,-515.93966216,0.00020459,2]
[365906130,1749981038813,-432.3923989,0.0002046,2]
[365906131,1749981038822,-440.0,0.0002046,2]
[365906132,1749981038832,-440.0,0.0002046,2]
[365906133,1749981038841,-440.0,0.0002046,2]
[365906134,1749981038851,-440.0,0.0002046,2]
[365906135,1749981038864,-440.0,0.0002046,2]
[365906136,1749981038874,-440.0,0.0002046,2]
[365906137,1749981038883,-440.0,0.0002046,2]
[365906138,1749981038894,-440.0,0.0002046,2]
[365906139,1749981038904,-440.0,0.0002046,2]
[365906140,1749981038914,-430.0,0.0002046,2]
[365906141,1749981038923,-430.0,0.0002046,2]
[365906142,1749981038934,-440.0,0.0002046,2]
[365906143,1749981038943,-440.0,0.0002046,2]
[365906144,1749981038953,-440.0,0.0002046,2]
[365906145,1749981038963,-430.0,0.0002046,2]
[365906146,1749981038973,-487.33445535,0.0002046,2]
[365906147,1749981038983,-440.0,0.0002046,2]
[365906148,1749981038992,-440.0,0.0002046,2]
[365906149,1749981039002,-440.0,0.0002046,2]
[365906150,1749981039011,-961.17,0.0002046,2]
[365906151,1749981039021,-460.0,0.0002046,2]
[365906152,1749981039031,-432.70756962,0.0002046,2]
[365906153,1749981039040,-375.87908355,0.0002046,2]
[365906154,1749981039049,-428.81033719,0.0002046,2]
[365906155,1749981039059,-430.0,0.0002046,2]
[365906156,1749981039068,-440.0,0.0002046,2]
[365906157,1749981039078,-559.37252558,0.0002046,2]
[365906158,1749981039087,-440.0,0.0002046,2]
[365906159,1749981039096,-440.0,0.0002046,2]
[365906160,1749981039106,-440.0,0.0002046,2]
[365906161,1749981039116,-420.78471133,0.0002046,2]
[365906162,1749981039126,-440.0,0.0002046,2]
[365906163,1749981039135,-430.0,0.0002046,2]
[365906164,1749981039145,-347.22070214,0.0002046,2]
[365906165,1749981039155,-440.0,0.0002046,2]
[365906166,1749981039164,-440.0,0.0002046,2]
[365906167,1749981039174,-534.88135862,0.0002046,2]
[365906168,1749981039183,-528.94953731,0.0002046,2]
[365906169,1749981039193,-460.0,0.0002046,2]
[365906170,1749981039202,-440.0,0.0002046,2]
[365906171,1749981039211,-440.0,0.0002046,2]
[365906172,1749981039221,-440.0,0.0002046,2]
[365906173,1749981039231,-440.0,0.0002046,2]
[365906174,1749981039240,-501.95,0.0002046,2]
[365906175,1749981039250,-430.0,0.0002046,2]
[365906176,1749981039259,-460.0,0.0002046,2]
[365906177,1749981039269,-430.0,0.0002046,2]
[365906178,1749981039278,-431.1115336,0.0002046,2]
[365906179,1749981039287,-428.82290992,0.0002046,2]
[365906180,1749981039297,-443.98371043,0.0002046,2]
[365906181,1749981039306,-440.0,0.0002046,2]
[365906182,1749981039456,-406.09472844,0.0002046,2]
[365906183,1749981039466,-499.52,0.0002046,2]
[365906184,1749981039476,-430.0,0.0002046,2]
[365906185,1749981039486,-1504.85,0.00020461,2]
[365906186,1749981039496,-430.0,0.00020461,2]
[365906187,1749981039505,-460.0,0.00020461,2]
[365906188,1749981039514,-440.0,0.00020461,2]
[365906189,1749981039524,-440.0,0.00020461,2]
[365906190,1749981039533,-430.0,0.00020461,2]
[365906191,1749981039543,-459.928052,0.00020461,2]
[365906192,1749981039552,-440.0,0.00020461,2]
[365906193,1749981039561,-440.0,0.00020461,2]
[365906194,1749981039572,-460.0,0.00020461,2]
[365906195,1749981039581,-460.0,0.00020461,2]
[365906196,1749981039591,-440.0,0.00020461,2]
[365906197,1749981039601,-440.0,0.00020461,2]
[365906198,1749981039610,-440.0,0.00020461,2]
[365906199,1749981039620,-500.0,0.00020461,2]
[365906200,1749981039629,-460.0,0.00020461,2]
[365906201,1749981039639,-919.76,0.00020461,2]
[365906202,1749981039648,-1179.53,0.00020461,2]
[365906203,1749981039658,-460.0,0.00020461,2]
[365906204,1749981039667,-460.0,0.00020461,2]
[365906205,1749981039677,-460.0,0.00020461,2]
[365906206,1749981039686,-460.0,0.00020461,2]
[365906207,1749981039696,-460.0,0.00020461,2]
[365906208,1749981039705,-460.0,0.00020461,2]
[365906209,1749981039715,-460.0,0.00020461,2]
[365906210,1749981039725,-460.0,0.00020461,2]
[365906211,1749981039736,-460.0,0.00020461,2]
[365906212,1749981039746,-460.0,0.00020461,2]
[365906213,1749981039755,-460.0,0.00020461,2]
[365906214,1749981039765,-460.0,0.00020461,2]
[365906215,1749981039774,-460.0,0.00020461,2]
[365906216,1749981039786,-460.0,0.00020461,2]
[365906217,1749981039796,-460.0,0.00020461,2]
[365906218,1749981039806,-460.0,0.00020461,2]
[365906219,1749981039815,-820.78,0.00020461,2]
[365906220,1749981039824,-460.0,0.00020461,2]
[365906221,1749981039833,-500.0,0.00020462,2]
[365906222,1749981039843,-500.0,0.00020462,2]
[365906223,1749981039854,-460.0,0.00020462,2]
[365906224,1749981039868,-460.0,0.00020462,2]
[365906225,1749981039877,-563.34,0.00020462,2]
[365906226,1749981039887,-460.0,0.00020462,2]
[365906227,1749981039896,-460.0,0.00020462,2]
[365906228,1749981039907,-614.36,0.00020462,2]
[365906230,1749981039916,-1131.89,0.00020462,2]
[365906231,1749981039925,-460.0,0.00020462,2]
[365906232,1749981039935,-430.0,0.00020463,2]
[365906233,1749981039945,-417.86177832,0.00020463,2]
[365906234,1749981039955,-430.0,0.00020463,2]
[365906235,1749981039964,-434.96709773,0.00020463,2]
[365906236,1749981039973,-460.0,0.00020463,2]
[365906237,1749981039982,-460.0,0.00020463,2]
[365906238,1749981039992,-460.0,0.00020463,2]
[365906239,1749981040002,-460.0,0.00020463,2]
[365906240,1749981040011,-460.0,0.00020463,2]
[365906242,1749981040020,-460.0,0.00020463,2]
[365906243,1749981040030,-460.0,0.00020463,2]
[365906244,1749981040039,-460.0,0.00020463,2]
[365906245,1749981040049,-460.0,0.00020463,2]
[365906247,1749981040058,-450.30783365,0.00020463,2]
[365906248,1749981040102,-9.69216635,0.00020463,2]
[365906249,1749981040111,-460.0,0.00020463,2]
[365906250,1749981040120,-436.58317014,0.00020463,2]
[365906252,1749981040129,-460.0,0.00020463,2]
[365906254,1749981040139,-460.0,0.00020463,2]
[365906256,1749981040148,-460.0,0.00020463,2]
[365906257,1749981040157,-430.0,0.00020463,2]
[365906260,1749981040167,-440.0,0.00020463,2]
[365906261,1749981040176,-440.0,0.00020463,2]
[365906262,1749981040186,-460.0,0.00020463,2]
[365906263,1749981040195,-460.0,0.00020463,2]
[365906264,1749981040205,-460.0,0.00020463,2]
[365906265,1749981040215,-430.0,0.00020463,2]
[365906266,1749981040224,-430.0,0.00020463,2]
[365906267,1749981040233,-430.0,0.00020463,2]
[365906269,1749981040243,-430.0,0.00020463,2]
[365906271,1749981040252,-184.69927971,0.00020463,2]
[365906273,1749981040261,-430.0,0.00020463,2]
[365906274,1749981040270,-460.0,0.00020463,2]
[365906275,1749981040280,-262.03252181,0.00020463,2]
[365906276,1749981040289,-460.0,0.00020463,2]
[365906277,1749981040299,-440.0,0.00020463,2]
[365906278,1749981040308,-173.17523759,0.00020463,2]
[365906279,1749981040318,-430.0,0.00020463,2]
[365906280,1749981040327,-430.0,0.00020463,2]
[365906282,1749981040337,-460.0,0.00020463,2]
[365906284,1749981040347,-440.0,0.00020465,2]
[365906286,1749981040356,-440.0,0.00020465,2]
[365906288,1749981040366,-440.0,0.00020465,2]
[365906290,1749981040375,-440.0,0.00020465,2]
[365906292,1749981040385,-160.0,0.00020466,2]
[365906294,1749981040395,-500.0,0.00020466,2]
[365906296,1749981040404,-460.0,0.00020467,2]
[365906298,1749981040413,-755.17780099,0.00020498,2]
[365906300,1749981040424,-508.731,0.0002052,2]
[365906302,1749981040433,-500.0,0.00020547,2]
[365906304,1749981040442,-500.0,0.0002064,2]
[365906306,1749981040451,-519.2447875,0.0002064,2]
[365906308,1749981040461,-500.0,0.00020692,2]
[365906310,1749981040470,-509.79302906,0.000207,2]
[365906312,1749981040480,-500.0,0.000207,2]
[365906314,1749981040489,-460.0,0.00020733,2]
[365906316,1749981040498,-569.15,0.00020733,2]
[365906318,1749981040508,-475.11,0.00020733,2]
[365906320,1749981040518,-460.0,0.00020733,2]
[365906322,1749981040528,-961.17,0.00020734,2]
[365906324,1749981040537,-460.0,0.00020734,2]
[365906326,1749981040547,-501.95,0.00020734,2]
[365906328,1749981040557,-499.52,0.00020734,2]
[365906330,1749981040566,-1504.85,0.00020735,2]
[365906332,1749981040575,-460.0,0.00020735,2]
[365906334,1749981040584,-919.76,0.00020735,2]
[365906336,1749981040594,-1179.53,0.00020735,2]
[365906338,1749981040603,-460.0,0.00020735,2]
[365906340,1749981040613,-460.0,0.00020735,2]
[365906342,1749981040623,-460.0,0.00020735,2]
[365906344,1749981040632,-343.15812014,0.00020735,2]
[365907903,1749981126459,280.5138277,0.00019707,2]
[365907906,1749981243488,173.222349,0.00019599,2]
[365907908,1749981338227,285.62980012,0.000189,2]
[365907910,1749981435991,15860.75923707,0.00019442,2]
[365907911,1749981436017,9039.24076293,0.00019442,2]
[365907912,1749981485135,194.5076377,0.0002,2]
[365907914,1749981512922,264.084801,0.00019459,2]
[365907916,1749981639560,190.41986675,0.000189,2]
[365907920,1749981828855,342.683664,0.00013699,2]
[365907921,1749981829862,-163.82220355,0.00020063,2]
[365907923,1749981843772,-186.61239845,0.00020063,2]
[365907924,1749981850040,186.61239845,0.0002,2]
[365907925,1749981903855,-215.45071322,0.00020063,2]
[365907926,1749981911556,-300.0,0.00020063,2]
[365907927,1749981911767,-130.17652984,0.00020063,2]
[365907928,1749981921346,-169.82347016,0.00020063,2]
[365907929,1749981921369,-223.0,0.00020063,2]
[365907930,1749981921392,-37.35305968,0.00020063,2]
[365907931,1749981940795,150.0,0.000189,2]
[365907933,1749981982709,-160.0,0.00020063,2]
[365907934,1749982023574,-270.17652984,0.00020063,2]
[365907935,1749982037119,-327.47041048,0.00020063,2]
[365907936,1749982037145,-300.0,0.00020063,2]
[365907937,1749982037168,-300.0,0.00020063,2]
[365907938,1749982037188,-500.0,0.00020064,2]
[365907939,1749982037208,-500.0,0.00020064,2]
[365907940,1749982037228,-500.0,0.00020064,2]
[365907941,1749982037247,-500.0,0.00020064,2]
[365907942,1749982037267,-264.47250874,0.00020064,2]
[365907943,1749982037289,-2197.45,0.00020104,2]
[365907944,1749982037310,-367.30565943,0.00020164,2]
[365907945,1749982049100,-342.683664,0.00020187,2]
[365907946,1749982049122,-383.05203455,0.00020357,2]
[365907947,1749982049143,-434.3016927,0.00020381,2]
[365907948,1749982049164,-215.45071322,0.00020447,2]
[365907949,1749982049186,-500.0,0.00020447,2]
[365907950,1749982049210,-597.80190098,0.00020447,2]
[365907951,1749982049234,-424.53025606,0.00020447,2]
[365907952,1749982058803,-430.17652984,0.00020164,2]
[365907953,1749982063890,-369.82347016,0.0002013,2]
[365907957,1749982146640,-302.92489012,0.00020117,2]
[365907959,1749982217570,168.03110711,6.9e-07,2]
[365907960,1749982217958,168.03110711,6.9e-07,2]
[365907961,1749982218195,-168.03110711,0.00020117,2]
[365907962,1749982219903,-69.82347016,0.00020164,2]
[365907963,1749982228251,-378.23402232,0.00020117,2]
[365907965,1749982230008,177.140651,0.00019456,2]
[365908045,1749982233242,-1782.68597768,0.00020117,2]
[365908048,1749982233254,-387.79073684,0.00020357,2]
[365908050,1749982233268,-2129.04828548,0.00020445,2]
[365908052,1749982233283,-2723.3991735,0.00020445,2]
[365908056,1749982233308,-1685.5744401,0.00020445,2]
[365908058,1749982233321,-440.0,0.00020447,2]
[365908061,1749982233337,-259.15912028,0.00020451,3]
[365908079,1749982233536,-476.75087972,0.00020451,3]
[365908081,1749982233548,-300.0,0.00020454,2]
[365908084,1749982233559,-300.0,0.00020454,2]
[365908086,1749982233569,-460.0,0.00020455,2]
[365908087,1749982233580,-460.0,0.00020455,2]
[365908090,1749982233595,-502.20325004,0.00020455,2]
[365908092,1749982233607,-500.0,0.00020455,2]
[365908094,1749982233618,-176.17502909,0.00020455,2]
[365908097,1749982233630,-500.0,0.00020455,2]
[365908099,1749982233642,-500.0,0.00020455,2]
[365908101,1749982233655,-196.38991946,0.00020455,2]
[365908103,1749982233667,-557.15887686,0.00020455,2]
[365908104,1749982233680,-209.48974031,0.00020455,2]
[365908105,1749982233695,-250.51025969,0.00020455,2]
[365908106,1749982233707,-460.0,0.00020455,2]
[365908107,1749982233718,-302.92489012,0.00020455,2]
[365908108,1749982233731,-141.99525358,0.00020455,2]
[365908363,1749982238584,-318.00474642,0.00020455,2]
[365908365,1749982238595,-79.11203387,0.00020455,2]
[365908367,1749982238609,-330.88796613,0.00020455,2]
[365908369,1749982238620,-460.0,0.00020455,2]
[365908371,1749982238630,-987.01,0.00020455,2]
[365908373,1749982238641,-840.69,0.00020455,2]
[365908375,1749982238652,-522.73462613,0.00020455,2]
[365908377,1749982238663,-430.0,0.00020455,2]
[365908380,1749982238674,-801.24,0.00020455,2]
[365908382,1749982238685,-378.23402232,0.00020455,2]
[365908384,1749982238696,-460.0,0.00020455,2]
[365908385,1749982238706,-343.12071737,0.00020455,2]